bitfinex-derivatives/quotes_SOLF0:USTF0_20251026
["timestamp","ask_amount","ask_price","bid_price","bid_amount"]
[1761442395469,3.89561701,193.41,193.33,2.64]
[1761442395772,1.50555739,193.42,193.33,2.64]
[1761442395971,3.8951246,193.41,193.33,2.64]
[1761442396170,1.50555739,193.44,193.34,1.50555739]
[1761442396374,3.89488037,193.43,193.35,2.64]
[1761442396568,3.89488037,193.42,193.35,2.64]
[1761442396770,1.50555739,193.44,193.35,2.64]
[1761442396771,3.89488037,193.41,193.35,2.64]
[1761442396970,1.50555739,193.44,193.35,2.64]
[1761442397173,3.89486586,193.43,193.35,2.64]
[1761442397374,3.89486586,193.42,193.35,2.64]
[1761442397573,3.89486586,193.41,193.35,2.64]
[1761442397771,1.50555739,193.44,193.35,2.64]
[1761442397964,3.89375397,193.43,193.35,2.64]
[1761442398170,3.89375397,193.42,193.35,2.64]
[1761442398371,3.89375397,193.41,193.35,2.64]
[1761442398571,1.50555739,193.44,193.35,2.64]
[1761442398870,3.89393107,193.43,193.35,2.64]
[1761442399063,3.89393107,193.42,193.35,2.64]
[1761442399268,3.89393107,193.41,193.35,2.64]
[1761442399468,3.89393107,193.43,193.35,2.64]
[1761442399668,3.89393107,193.42,193.35,2.64]
[1761442399864,3.89393107,193.41,193.35,2.64]
[1761442400069,3.89393107,193.43,193.35,2.64]
[1761442400364,6.40939231,193.48,193.37,2.64]
[1761442400365,3.89393107,193.42,193.37,2.64]
[1761442400669,3.89393107,193.46,193.42,2.64]
[1761442400872,3.89393107,193.45,193.42,2.64]
[1761442401075,3.89393107,193.44,193.42,2.64]
[1761442401268,4.79424886,193.48,193.42,2.64]
[1761442401473,3.89397994,193.47,193.42,2.64]
[1761442401673,3.89397994,193.46,193.42,2.64]
[1761442401869,3.89397994,193.45,193.42,2.64]
[1761442402069,3.89397994,193.44,193.42,2.64]
[1761442402268,4.79424886,193.48,193.42,2.64]
[1761442402468,3.89408772,193.47,193.42,2.64]
[1761442402676,3.89408772,193.46,193.42,2.64]
[1761442402977,3.89408772,193.45,193.42,2.64]
[1761442403170,3.89408772,193.44,193.42,2.64]
[1761442403371,4.79424886,193.48,193.42,2.64]
[1761442403574,3.89399885,193.47,193.42,2.64]
[1761442403871,3.89399885,193.46,193.42,2.64]
[1761442404170,3.89399885,193.45,193.42,2.64]
[1761442404369,3.89399885,193.44,193.42,2.64]
[1761442404574,4.79424886,193.48,193.42,2.64]
[1761442404768,3.89415209,193.47,193.42,2.64]
[1761442404973,3.89415209,193.46,193.42,2.64]
[1761442405174,3.89415209,193.45,193.42,2.64]
[1761442405375,3.89415209,193.44,193.42,2.64]
[1761442405575,4.79424886,193.48,193.42,2.64]
[1761442405776,3.89407287,193.47,193.42,2.64]
[1761442405975,3.89407287,193.46,193.42,2.64]
[1761442406178,3.89407287,193.45,193.42,2.64]
[1761442406371,3.89407287,193.44,193.42,2.64]
[1761442406680,4.79424886,193.48,193.42,2.64]
[1761442406978,3.89415593,193.47,193.42,2.64]
[1761442407178,3.89415593,193.46,193.42,2.64]
[1761442407376,3.89415593,193.45,193.42,2.64]
[1761442407581,3.89415593,193.44,193.42,2.64]
[1761442407879,4.79424886,193.48,193.42,2.64]
[1761442408082,3.89447462,193.47,193.42,2.64]
[1761442408281,3.89447462,193.46,193.42,2.64]
[1761442408482,3.89447462,193.45,193.42,2.64]
[1761442408780,3.89447462,193.44,193.42,2.64]
[1761442408981,3.89447462,193.43,193.42,2.64]
[1761442419384,3.89447462,193.43,193.4,2.72]
[1761442419587,4.79424886,193.47,193.39,1.50555739]
[1761442419793,3.90068009,193.46,193.39,1.50555739]
[1761442419992,3.90068009,193.45,193.39,1.50555739]
[1761442420192,3.90068009,193.44,193.37,2.72]
[1761442420389,3.90068009,193.43,193.37,2.72]
[1761442420584,1.50555739,193.46,193.37,2.72]
[1761442420786,3.90094451,193.45,193.37,2.72]
[1761442421091,3.90094451,193.44,193.37,2.72]
[1761442421392,3.90094451,193.43,193.37,2.72]
[1761442421593,1.50555739,193.46,193.37,2.72]
[1761442421894,3.90096112,193.45,193.37,2.72]
[1761442422088,3.90096112,193.44,193.37,2.72]
[1761442422288,3.90096112,193.43,193.37,2.72]
[1761442422489,1.50555739,193.46,193.37,2.72]
[1761442422689,3.90098584,193.45,193.37,2.72]
[1761442422993,3.90098584,193.44,193.37,2.72]
[1761442423186,3.90098584,193.43,193.37,2.72]
[1761442423387,1.50555739,193.46,193.37,2.72]
[1761442423587,3.90098261,193.45,193.37,2.72]
[1761442423892,3.90098261,193.44,193.37,2.72]
[1761442424088,3.90098261,193.43,193.37,2.72]
[1761442424285,1.50555739,193.46,193.37,2.72]
[1761442424492,3.90098235,193.45,193.37,2.72]
[1761442424688,3.90098235,193.44,193.37,2.72]
[1761442424887,3.90098235,193.43,193.37,2.72]
[1761442425088,1.50555739,193.46,193.37,2.72]
[1761442425388,3.901049,193.45,193.37,2.72]
[1761442425588,3.901049,193.44,193.37,2.72]
[1761442425788,3.901049,193.43,193.37,2.72]
[1761442425985,1.50555739,193.46,193.37,2.72]
[1761442426195,3.901049,193.45,193.37,2.72]
[1761442426396,3.901049,193.44,193.37,2.72]
[1761442426595,3.901049,193.43,193.37,2.72]
[1761442426795,1.50555739,193.46,193.37,2.72]
[1761442426999,3.90104278,193.45,193.37,2.72]
[1761442427188,3.90104278,193.44,193.37,2.72]
[1761442427390,3.90104278,193.43,193.37,2.72]
[1761442427590,1.50555739,193.46,193.37,2.72]
[1761442427899,1.50555739,193.44,193.34,2.72]
[1761442428197,1.50555739,193.42,193.34,2.72]
[1761442428397,3.90204984,193.41,193.34,2.72]
[1761442428598,1.50555739,193.42,193.34,2.72]
[1761442428893,3.90303818,193.41,193.34,2.72]
[1761442429196,1.50555739,193.42,193.34,2.72]
[1761442429397,3.9028365,193.41,193.34,2.72]
[1761442429697,1.50555739,193.42,193.34,2.72]
[1761442429897,3.90283502,193.41,193.34,2.72]
[1761442430093,1.50555739,193.42,193.34,2.72]
[1761442430295,3.90272522,193.41,193.34,2.72]
[1761442430497,1.50555739,193.42,193.34,2.72]
[1761442430694,3.90272798,193.41,193.34,2.72]
[1761442430894,1.50555739,193.42,193.34,2.72]
[1761442431096,3.90326914,193.41,193.34,2.72]
[1761442431393,1.50555739,193.42,193.34,2.72]
[1761442431588,3.90485847,193.41,193.34,2.72]
[1761442431791,1.50555739,193.42,193.34,2.72]
[1761442431991,3.90486271,193.41,193.34,2.72]
[1761442432289,1.50555739,193.42,193.34,2.72]
[1761442432489,3.90473072,193.41,193.34,2.72]
[1761442432695,1.50555739,193.42,193.34,2.72]
[1761442432891,3.90478129,193.41,193.34,2.72]
[1761442433099,1.50555739,193.42,193.34,2.72]
[1761442433298,3.90466194,193.41,193.34,2.72]
[1761442433499,1.50555739,193.42,193.34,2.72]
[1761442433798,3.90463379,193.41,193.34,2.72]
[1761442433997,1.50555739,193.42,193.34,2.72]
[1761442434199,3.90463379,193.41,193.34,2.72]
[1761442434399,1.50555739,193.42,193.34,2.72]
[1761442434598,3.90450707,193.41,193.34,2.72]
[1761442434799,1.50555739,193.42,193.34,2.72]
[1761442435000,3.90450559,193.41,193.34,2.72]
[1761442435201,1.50555739,193.42,193.34,2.72]
[1761442435505,3.9044552,193.41,193.34,2.72]
[1761442435698,1.50555739,193.42,193.34,2.72]
[1761442435898,3.9044552,193.41,193.34,2.72]
[1761442436097,1.50555739,193.42,193.34,2.72]
[1761442436300,3.90440443,193.41,193.34,2.72]
[1761442436501,1.50555739,193.42,193.34,2.72]
[1761442436701,4.79424886,193.45,193.34,2.72]
[1761442436702,3.90440443,193.41,193.34,2.72]
[1761442436903,4.79424886,193.45,193.34,2.72]
[1761442437102,3.90440357,193.44,193.34,2.72]
[1761442437409,3.90440357,193.43,193.34,2.72]
[1761442437701,3.90440357,193.42,193.34,2.72]
[1761442437907,4.79424886,193.46,193.34,2.72]
[1761442438205,3.90441311,193.45,193.34,2.72]
[1761442438408,3.90441311,193.44,193.34,2.72]
[1761442438599,3.90441311,193.43,193.34,2.72]
[1761442438799,3.90441311,193.42,193.34,2.72]
[1761442438999,4.79424886,193.46,193.34,4.6544]
[1761442439295,4.79424886,193.46,193.35,2.72]
[1761442439296,3.90361631,193.45,193.35,2.72]
[1761442439495,3.90361631,193.44,193.35,2.72]
[1761442439700,3.90361631,193.43,193.35,2.72]
[1761442439900,3.90361631,193.42,193.35,2.72]
[1761442440108,4.79424886,193.46,193.35,2.72]
[1761442440313,3.90354943,193.45,193.35,2.72]
[1761442440608,3.90354943,193.44,193.35,2.72]
[1761442440907,3.90354943,193.43,193.35,2.72]
[1761442441104,3.90354943,193.42,193.35,2.72]
[1761442441302,4.79424886,193.46,193.35,2.72]
[1761442441507,3.90930671,193.45,193.36,2.76]
[1761442441706,3.90930671,193.44,193.36,2.76]
[1761442442003,3.90930671,193.43,193.36,2.76]
[1761442442207,3.90930671,193.42,193.36,2.76]
[1761442442508,3.90972301,193.46,193.36,2.76]
[1761442442810,3.90972301,193.45,193.36,2.76]
[1761442443108,3.90972301,193.44,193.36,2.76]
[1761442443304,3.90972301,193.43,193.36,2.76]
[1761442443502,4.79424886,193.47,193.36,2.76]
[1761442443702,3.90985521,193.46,193.36,2.76]
[1761442443905,3.90985521,193.45,193.36,2.76]
[1761442444211,3.90985521,193.44,193.36,2.76]
[1761442444409,3.90985521,193.43,193.36,2.76]
[1761442444598,4.79424886,193.47,193.36,2.76]
[1761442444798,3.90988885,193.46,193.36,2.76]
[1761442445004,3.90988885,193.45,193.36,2.76]
[1761442445206,3.90988885,193.44,193.36,2.76]
[1761442445406,3.90988885,193.43,193.36,2.76]
[1761442445610,4.79424886,193.48,193.36,2.76]
[1761442445812,3.91068834,193.47,193.36,2.76]
[1761442446006,3.91068834,193.46,193.36,2.76]
[1761442446207,3.91068834,193.45,193.36,2.76]
[1761442446407,3.91068834,193.44,193.36,2.76]
[1761442446606,4.79424886,193.48,193.36,7.4137]
[1761442446910,3.91153137,193.47,193.39,2.76]
[1761442447111,3.91153137,193.46,193.39,2.76]
[1761442447312,4.79424886,193.5,193.39,2.76]
[1761442447509,3.91148435,193.49,193.39,2.76]
[1761442447813,3.91148435,193.48,193.39,2.76]
[1761442448014,3.91148435,193.47,193.39,2.76]
[1761442448211,3.91148435,193.46,193.39,2.76]
[1761442448409,4.79424886,193.51,193.39,2.76]
[1761442448610,3.91107296,193.5,193.39,2.76]
[1761442448811,3.91107296,193.49,193.39,2.76]
[1761442449012,3.91107296,193.48,193.39,2.76]
[1761442449213,3.91107296,193.47,193.39,2.76]
[1761442449411,3.91107296,193.51,193.39,2.76]
[1761442449612,3.91107296,193.5,193.39,2.76]
[1761442449817,3.91107296,193.49,193.39,2.76]
[1761442450012,4.79424886,193.53,193.39,2.76]
[1761442450207,3.91035465,193.52,193.39,4.653]
[1761442450516,28.3196665,193.54,193.42,2.68]
[1761442450517,3.91035465,193.51,193.42,2.68]
[1761442450709,4.79424886,193.55,193.42,2.68]
[1761442450910,3.90926114,193.54,193.42,2.68]
[1761442451113,3.90926114,193.53,193.42,2.68]
[1761442451412,4.79424886,193.55,193.42,2.68]
[1761442451413,3.90764411,193.52,193.42,2.68]
[1761442451607,3.90764411,193.51,193.42,2.68]
[1761442451814,3.90764411,193.54,193.42,2.68]
[1761442452010,3.90764411,193.53,193.42,2.68]
[1761442452316,3.90764411,193.52,193.42,2.68]
[1761442452518,3.90764411,193.51,193.42,2.68]
[1761442452717,3.90764411,193.55,193.42,2.68]
[1761442452917,3.90764411,193.54,193.42,2.68]
[1761442453120,3.90764411,193.53,193.42,2.68]
[1761442453307,3.90764411,193.52,193.42,2.68]
[1761442453510,3.90764411,193.55,193.42,2.68]
[1761442453808,3.90764411,193.54,193.42,2.68]
[1761442454011,3.90764411,193.53,193.42,2.68]
[1761442454212,3.90764411,193.52,193.42,2.68]
[1761442454412,3.90764411,193.55,193.42,2.68]
[1761442454613,3.90764411,193.54,193.42,2.68]
[1761442454814,3.90764411,193.53,193.42,2.68]
[1761442455110,3.90764411,193.55,193.42,2.68]
[1761442455321,3.90764411,193.54,193.42,2.68]
[1761442455515,3.90764411,193.53,193.42,2.68]
[1761442455717,3.90764411,193.56,193.42,2.68]
[1761442456019,3.90764411,193.55,193.42,2.68]
[1761442456208,3.90764411,193.54,193.42,2.68]
[1761442456407,3.90764411,193.55,193.42,2.68]
[1761442456619,3.90764411,193.54,193.42,2.68]
[1761442456808,3.90764411,193.55,193.42,2.68]
[1761442457011,3.90764411,193.54,193.42,2.68]
[1761442457208,3.90764411,193.55,193.42,2.68]
[1761442459122,6.26067237,193.56,193.43,2.68]
[1761442459522,3.90764411,193.55,193.43,2.68]
[1761442459918,2.35302826,193.56,193.43,2.68]
[1761442460322,6.26067237,193.56,193.43,2.68]
[1761442460522,3.90764411,193.55,193.43,2.68]
[1761442460824,2.35302826,193.56,193.43,2.68]
[1761442463331,6.26067237,193.59,193.43,2.68]
[1761442463517,3.90764411,193.58,193.43,2.68]
[1761442463716,2.35302826,193.59,193.43,2.68]
[1761442464030,6.26067237,193.59,193.43,2.68]
[1761442464324,3.90764411,193.58,193.45,4.6516]
[1761442464623,2.35302826,193.59,193.46,2.68]
[1761442474234,3.90764411,193.6,193.46,2.68]
[1761442474235,2.35302826,193.56,193.46,2.68]
[1761442482939,6.23753135,193.56,193.46,2.68]
[1761442483134,3.88894716,193.55,193.46,2.68]
[1761442483344,2.35302826,193.56,193.46,2.68]
[1761442485348,6.24197542,193.56,193.46,2.68]
[1761442485540,3.88894716,193.55,193.46,2.68]
[1761442485740,2.35302826,193.56,193.46,2.68]
[1761442486142,6.24197542,193.56,193.46,2.68]
[1761442486339,3.88894716,193.55,193.46,2.68]
[1761442486641,2.35302826,193.56,193.46,2.68]
[1761442487042,6.24197542,193.56,193.46,2.68]
[1761442487239,3.88894716,193.55,193.46,2.68]
[1761442488137,2.35302826,193.56,193.46,2.68]
[1761442488138,3.88894716,193.54,193.46,2.68]
[1761442488339,3.88894716,193.55,193.46,2.68]
[1761442488541,3.88894716,193.54,193.46,2.68]
[1761442488738,3.88894716,193.55,193.46,2.68]
[1761442488938,3.88894716,193.54,193.46,2.68]
[1761442489138,3.88894716,193.55,193.46,2.68]
[1761442489345,3.88894716,193.54,193.46,2.68]
[1761442489547,3.88894716,193.55,193.46,2.68]
[1761442489844,3.88894716,193.54,193.46,2.68]
[1761442490048,3.88894716,193.55,193.46,2.68]
[1761442490440,3.88894716,193.58,193.46,2.68]
[1761442490747,8.05009441,193.61,193.47,4.68459943]
[1761442490748,3.88894716,193.57,193.47,4.68459943]
[1761442490949,3.92006238,193.6,193.49,2.69]
[1761442491148,3.92006238,193.59,193.51,2.69]
[1761442491441,4.79770191,193.61,193.46,2.35302826]
[1761442491442,3.92006238,193.58,193.53,2.69]
[1761442491643,3.92006238,193.57,193.55,2.69]
[1761442491851,4.80936172,193.61,193.56,4.68459943]
[1761442492042,3.92199949,193.6,193.57,4.68459943]
[1761442492243,3.92199949,193.59,193.58,4.68459943]
[1761442493847,3.92199949,193.59,193.55,2.69]
[1761442494049,3.92199949,193.58,193.55,2.69]
[1761442494251,3.92199949,193.57,193.55,2.69]
[1761442494451,7.16238998,193.62,193.55,2.69]
[1761442494748,8.73420408,193.61,193.55,2.69]
[1761442494948,3.92484236,193.6,193.55,2.69]
[1761442495148,3.92484236,193.59,193.55,2.69]
[1761442495350,3.92484236,193.58,193.55,2.69]
[1761442495552,3.92484236,193.57,193.55,2.69]
[1761442495752,4.80936172,193.62,193.55,2.69]
[1761442495948,3.9254662,193.61,193.55,2.69]
[1761442496153,3.9254662,193.6,193.55,2.69]
[1761442496355,3.9254662,193.59,193.55,2.69]
[1761442496555,3.9254662,193.58,193.55,2.69]
[1761442496853,4.80936172,193.62,193.55,2.69]
[1761442496854,3.9254662,193.57,193.55,2.69]
[1761442497057,4.80936172,193.62,193.55,2.69]
[1761442497257,3.92511119,193.61,193.55,2.69]
[1761442497449,3.92511119,193.6,193.55,2.69]
[1761442497644,8.76242057,193.65,193.55,2.69]
[1761442497645,3.92511119,193.59,193.55,2.69]
[1761442497845,4.80936172,193.64,193.55,2.69]
[1761442498049,3.92512163,193.63,193.55,2.69]
[1761442498251,3.92512163,193.62,193.55,2.69]
[1761442498450,3.92512163,193.61,193.55,2.69]
[1761442498652,3.92512163,193.6,193.55,2.69]
[1761442498852,3.92512163,193.59,193.55,2.69]
[1761442499052,3.92512163,193.61,193.55,2.69]
[1761442499254,3.92512163,193.6,193.55,2.69]
[1761442499453,1.50277724,193.62,193.55,2.69]
[1761442499655,3.92427418,193.61,193.55,2.69]
[1761442499856,3.92427418,193.6,193.55,2.69]
[1761442500057,3.92427418,193.59,193.55,2.69]
[1761442500256,3.92427418,193.61,193.55,2.69]
[1761442500461,3.92427418,193.6,193.55,2.69]
[1761442500659,1.50277724,193.62,193.55,2.69]
[1761442500860,3.92456723,193.61,193.56,4.70722181]
[1761442501163,3.92456723,193.6,193.58,2.79]
[1761442501460,1.50277724,193.62,193.59,4.70722181]
[1761442501658,3.91078336,193.61,193.6,4.70722181]
[1761442505365,3.91078336,193.61,193.6,7.49722181]
[1761442505762,1.50277724,193.62,193.6,7.49722181]
[1761442505965,1.50277724,193.62,193.61,4.70722181]
[1761442506159,5.4135606,193.62,193.61,4.70722181]
[1761442506360,1.50277724,193.62,193.61,4.70722181]
[1761442507065,5.4135606,193.62,193.61,4.70722181]
[1761442507362,1.50277724,193.62,193.61,4.70722181]
[1761442508064,5.4135606,193.62,193.61,4.70722181]
[1761442508367,1.50277724,193.62,193.61,4.70722181]
[1761442508958,5.4135606,193.62,193.61,4.70722181]
[1761442509360,1.50277724,193.62,193.61,4.70722181]
[1761442509957,5.4135606,193.62,193.61,4.70722181]
[1761442510159,1.50277724,193.62,193.61,4.70722181]
[1761442511062,5.41267079,193.62,193.61,4.70722181]
[1761442511565,1.50277724,193.62,193.61,4.70722181]
[1761442517770,1.50277724,193.62,193.61,7.58722181]
[1761442518772,1.50277724,193.62,193.61,4.70722181]
[1761442519967,5.41116832,193.62,193.61,4.70722181]
[1761442520375,1.50277724,193.62,193.61,4.70722181]
[1761442522170,5.41116832,193.62,193.61,4.70722181]
[1761442522379,1.50277724,193.62,193.61,4.70722181]
[1761442522978,5.41116832,193.62,193.61,4.70722181]
[1761442523374,1.50277724,193.62,193.61,4.70722181]
[1761442523768,5.41116832,193.62,193.61,4.70722181]
[1761442524173,1.50277724,193.62,193.61,4.70722181]
[1761442524576,5.41116832,193.62,193.61,4.70722181]
[1761442524872,1.50277724,193.62,193.61,4.70722181]
[1761442525376,5.41116832,193.62,193.61,4.70722181]
[1761442527080,5.41116832,193.62,193.57,2.88]
[1761442527282,3.90839108,193.61,193.57,2.88]
[1761442527980,1.50277724,193.6,193.57,2.88]
[1761442529669,5.41693026,193.6,193.57,2.88]
[1761442529875,1.50277724,193.6,193.57,2.88]
[1761442530582,3.91511212,193.61,193.57,2.88]
[1761442530880,3.91511212,193.6,193.57,2.88]
[1761442531081,3.91511212,193.61,193.57,2.88]
[1761442531281,3.91511212,193.6,193.57,2.88]
[1761442531480,1.50277724,193.62,193.57,2.88]
[1761442531680,3.92047948,193.61,193.57,2.88]
[1761442531982,3.92047948,193.6,193.57,2.88]
[1761442532281,3.92047948,193.59,193.57,2.88]
[1761442532475,3.92047948,193.61,193.57,2.88]
[1761442532676,3.92047948,193.6,193.57,2.88]
[1761442532876,1.50277724,193.62,193.57,2.88]
[1761442533076,3.92227019,193.61,193.57,2.88]
[1761442533272,3.92227019,193.6,193.57,2.88]
[1761442533477,3.92227019,193.59,193.57,2.88]
[1761442533677,1.50277724,193.62,193.57,2.88]
[1761442533879,3.92403643,193.61,193.57,2.88]
[1761442534085,1.50277724,193.62,193.57,2.88]
[1761442534086,3.92403643,193.6,193.57,2.88]
[1761442534276,3.92403643,193.59,193.57,2.88]
[1761442534476,1.50277724,193.62,193.57,2.88]
[1761442534676,3.92649971,193.61,193.57,2.88]
[1761442534876,3.92649971,193.6,193.57,2.88]
[1761442535085,3.92649971,193.59,193.57,2.88]
[1761442535282,1.50277724,193.62,193.57,2.88]
[1761442535583,3.92830248,193.61,193.57,2.88]
[1761442535776,3.92830248,193.6,193.57,2.88]
[1761442535971,3.92830248,193.59,193.57,2.88]
[1761442536176,1.50277724,193.62,193.57,2.88]
[1761442536384,3.92879584,193.61,193.57,2.88]
[1761442536585,3.92879584,193.6,193.57,2.88]
[1761442536782,3.92879584,193.59,193.57,2.88]
[1761442536980,1.50277724,193.62,193.57,2.88]
[1761442537180,3.92874611,193.61,193.57,2.88]
[1761442537377,3.92874611,193.6,193.57,2.88]
[1761442537583,3.92874611,193.59,193.57,2.88]
[1761442537879,3.92874611,193.58,193.57,2.88]
[1761442538078,0.05522075,193.58,193.57,7.64702771]
[1761442539083,5.83842503,193.62,193.58,2.77]
[1761442539285,5.83842503,193.62,193.59,7.53702771]
[1761442539485,5.83842503,193.62,193.6,4.76702771]
[1761442539784,5.83842503,193.62,193.61,4.76702771]
[1761442541687,1.50277724,193.62,193.61,4.76702771]
[1761442542186,6.31213896,193.62,193.61,4.76702771]
[1761442542680,10.64778675,193.62,193.61,4.76702771]
[1761442543684,6.31213896,193.62,193.61,4.76702771]
[1761442544074,9.14500951,193.62,193.61,4.76702771]
[1761442545081,4.33564779,193.62,193.61,4.76702771]
[1761442545282,4.33564779,193.62,193.61,4.69228266]
[1761442545486,4.80936172,193.63,193.62,2.77]
[1761442545680,4.80936172,193.63,193.62,7.46228266]
[1761442545880,4.83302646,193.63,193.62,4.69228266]
[1761442546080,4.33852644,193.63,193.62,4.69228266]
[1761442546481,4.83302646,193.64,193.63,2.77]
[1761442546789,4.83302646,193.64,193.63,7.46228266]
[1761442547286,4.83302646,193.64,193.63,2.77]
[1761442548194,4.83302646,193.64,193.63,7.58432072]
[1761442550097,8.74885577,193.64,193.63,7.58432072]
[1761442550291,13.08737368,193.64,193.63,7.58432072]
[1761442550591,13.08834286,193.64,193.63,7.58432072]
[1761442557292,13.08834286,193.64,193.63,2.77]
[1761442557694,4.83302646,193.66,193.63,2.77]
[1761442557996,4.83302646,193.7,193.63,2.77]
[1761442558189,1.50277724,193.69,193.63,2.77]
[1761442558792,4.83302646,193.7,193.63,2.77]
[1761442558991,4.83302646,193.69,193.63,2.77]
[1761442559490,4.33907142,193.69,193.63,2.77]
[1761442559695,9.17209788,193.69,193.63,2.77]
[1761442559883,4.33907142,193.68,193.63,2.77]
[1761442560088,4.83302646,193.7,193.63,2.77]
[1761442560606,4.83302646,193.69,193.63,2.77]
[1761442560891,9.21375831,193.69,193.63,2.77]
[1761442561095,4.83302646,193.69,193.63,2.77]
[1761442561496,9.21396296,193.7,193.63,2.77]
[1761442561698,4.3809365,193.69,193.63,2.77]
[1761442562398,4.83302646,193.7,193.63,2.77]
[1761442562598,9.21396296,193.7,193.63,2.77]
[1761442562898,4.3809365,193.69,193.63,2.77]
[1761442563897,4.3809365,193.7,193.63,2.77]
[1761442564088,9.21396296,193.71,193.63,2.77]
[1761442564488,2.34648458,193.68,193.63,2.77]
[1761442565593,10.93415273,193.68,193.63,2.77]
[1761442565788,8.58766815,193.67,193.54,2.72]
[1761442566394,4.3809365,193.67,193.54,2.72]
[1761442569706,3.79819136,193.66,193.54,2.72]
[1761442569906,3.79819136,193.65,193.54,2.72]
[1761442570101,3.79819136,193.64,193.54,2.72]
[1761442570300,3.79819136,193.66,193.54,2.72]
[1761442570502,6.14467594,193.65,193.54,2.72]
[1761442570802,3.79819136,193.64,193.54,2.72]
[1761442571109,3.79819136,193.63,193.54,2.72]
[1761442571305,3.79819136,193.62,193.54,2.72]
[1761442571501,3.79819136,193.64,193.54,2.72]
[1761442571698,3.79819136,193.63,193.54,2.72]
[1761442571894,3.79819136,193.64,193.54,2.72]
[1761442572107,3.79819136,193.63,193.54,2.72]
[1761442572308,3.79819136,193.64,193.54,2.72]
[1761442572507,3.79819136,193.63,193.54,2.72]
[1761442572708,3.79819136,193.64,193.54,2.72]
[1761442572907,3.79819136,193.63,193.54,2.72]
[1761442573208,3.79819136,193.64,193.54,2.72]
[1761442573410,3.79819136,193.63,193.54,2.72]
[1761442573702,3.79819136,193.64,193.54,2.72]
[1761442573907,3.79819136,193.63,193.54,2.72]
[1761442574107,3.79819136,193.62,193.54,2.72]
[1761442574310,3.79819136,193.64,193.54,2.72]
[1761442574498,3.79819136,193.63,193.54,2.72]
[1761442574700,6.72541907,193.65,193.54,2.72]
[1761442574701,3.79819136,193.62,193.54,2.72]
[1761442574905,3.79819136,193.64,193.54,2.72]
[1761442575102,3.79819136,193.63,193.54,2.72]
[1761442575306,3.79819136,193.62,193.54,2.72]
[1761442575502,3.79819136,193.61,193.54,2.72]
[1761442575799,3.79819136,193.64,193.54,2.72]
[1761442576009,3.79819136,193.63,193.54,2.72]
[1761442576205,3.79819136,193.62,193.54,2.72]
[1761442576410,3.79819136,193.61,193.54,2.72]
[1761442576609,3.79819136,193.63,193.54,2.72]
[1761442576809,3.79819136,193.62,193.54,2.72]
[1761442577011,3.79819136,193.61,193.54,2.72]
[1761442577205,3.79819136,193.63,193.54,2.72]
[1761442577405,3.79819136,193.62,193.54,2.72]
[1761442577706,3.79819136,193.61,193.54,2.72]
[1761442577908,3.79819136,193.63,193.54,2.72]
[1761442578106,3.79819136,193.62,193.54,2.72]
[1761442578406,3.79819136,193.61,193.54,2.72]
[1761442578606,3.79819136,193.63,193.54,2.72]
[1761442578810,3.79819136,193.62,193.54,2.72]
[1761442579008,3.79819136,193.61,193.54,2.72]
[1761442579210,3.79819136,193.63,193.54,2.72]
[1761442579410,3.79819136,193.62,193.54,2.72]
[1761442579711,3.79819136,193.61,193.54,2.72]
[1761442579903,3.79819136,193.63,193.54,2.72]
[1761442580103,3.79819136,193.62,193.54,2.72]
[1761442580306,3.79819136,193.61,193.54,2.72]
[1761442580504,4.37893449,193.64,193.54,2.72]
[1761442580505,3.79819136,193.63,193.54,2.72]
[1761442580805,3.79819136,193.62,193.54,2.72]
[1761442581004,3.79819136,193.61,193.54,2.72]